bitfinex-derivatives/quotes_BTCF0:USTF0_20251220
["timestamp","ask_amount","ask_price","bid_price","bid_amount"]
[1766253302894,0.02737275,88233.0,88220.0,0.22860869]
[1766253303202,0.02737275,88232.0,88220.0,0.22860869]
[1766253303386,0.02737275,88231.0,88220.0,0.22860869]
[1766253303586,0.22860869,88230.0,88219.0,0.02836]
[1766253305200,0.0113395,88227.0,88219.0,0.02836]
[1766253309405,0.22860869,88230.0,88216.0,6e-08]
[1766253309700,0.0113402,88222.0,88209.0,0.02832006]
[1766253310106,0.0113402,88222.0,88209.0,0.02828006]
[1766253310899,0.22860869,88230.0,88209.0,0.02828006]
[1766253311105,0.0113397,88226.0,88209.0,0.02828006]
[1766253316404,0.0113397,88226.0,88207.0,4.036e-05]
[1766253316602,0.0113397,88226.0,88208.0,0.02836]
[1766253328531,0.02836,88227.0,88208.0,0.02836]
[1766253338239,0.02740162,88226.0,88208.0,0.02836]
[1766253338440,0.02836,88227.0,88208.0,0.02836]
[1766253338739,0.02740162,88226.0,88208.0,0.02836]
[1766253338941,0.02836,88227.0,88208.0,0.02836]
[1766253339240,0.02740162,88226.0,88208.0,0.02836]
[1766253339439,0.02836,88227.0,88208.0,0.02836]
[1766253339642,0.02740258,88226.0,88208.0,0.02836]
[1766253339840,0.02836,88227.0,88208.0,0.02836]
[1766253340041,0.02740259,88226.0,88208.0,0.02836]
[1766253340241,0.02836,88227.0,88208.0,0.02836]
[1766253340441,0.02740299,88226.0,88208.0,0.02836]
[1766253340632,0.02836,88227.0,88208.0,0.02836]
[1766253340833,0.02740299,88226.0,88208.0,0.02836]
[1766253341039,0.02836,88227.0,88208.0,0.02836]
[1766253341243,0.02740302,88226.0,88208.0,0.0397019]
[1766253341443,0.02836,88227.0,88208.0,0.0397019]
[1766253341643,0.02740302,88226.0,88208.0,0.0397019]
[1766253341840,0.02836,88227.0,88208.0,0.0397019]
[1766253342036,0.02740302,88226.0,88208.0,0.0397019]
[1766253342236,0.02836,88227.0,88208.0,0.0397019]
[1766253342446,0.02740309,88226.0,88208.0,0.0397019]
[1766253342644,0.02836,88227.0,88208.0,0.0397019]
[1766253342943,0.02740309,88226.0,88208.0,0.0397019]
[1766253343242,0.02836,88227.0,88208.0,0.0397019]
[1766253343443,0.02740319,88226.0,88208.0,0.0397019]
[1766253343645,0.02836,88227.0,88208.0,0.0397019]
[1766253343830,0.02740319,88226.0,88208.0,0.0397019]
[1766253344030,0.02836,88227.0,88208.0,0.0397019]
[1766253344234,0.02740318,88226.0,88208.0,0.0397019]
[1766253344430,0.02836,88227.0,88208.0,0.0397019]
[1766253344733,0.02740318,88226.0,88208.0,0.0397019]
[1766253344930,0.02836,88227.0,88208.0,0.0397019]
[1766253348146,0.0396995,88227.0,88208.0,0.0397019]
[1766253358556,0.0396995,88227.0,88208.0,0.02836]
[1766253377369,0.0396995,88227.0,88210.0,0.22866185]
[1766253381561,0.0396995,88227.0,88208.0,0.02836]
[1766253386775,0.0113399,88224.0,88208.0,0.02836]
[1766253394182,0.02836,88227.0,88207.0,4.036e-05]
[1766253394383,0.0113406,88218.0,88208.0,0.02836]
[1766253394576,0.22866185,88220.0,88208.0,0.02836]
[1766253398489,0.0113405,88219.0,88208.0,0.02836]
[1766253406380,0.22866185,88220.0,88208.0,0.02836]
[1766253407994,0.22869001,88220.0,88208.0,0.02836]
[1766253413300,0.0397001,88223.0,88208.0,0.02836]
[1766253413799,0.0397001,88223.0,88210.0,0.22869001]
[1766253414299,0.02836,88223.0,88210.0,0.22869001]
[1766253417498,0.02836,88223.0,88208.0,0.02836]
[1766253417703,0.02836,88223.0,88210.0,0.22869001]
[1766253420904,0.02836,88223.0,88208.0,0.02836]
[1766253424514,0.0113401,88222.0,88208.0,0.02836]
[1766253427118,0.0113401,88222.0,88210.0,0.22869001]
[1766253427506,0.02836,88223.0,88210.0,0.22869001]
[1766253432324,0.0397,88223.0,88210.0,0.22869001]
[1766253432512,0.02836,88223.0,88210.0,0.22869001]
[1766253435627,0.02836,88223.0,88208.0,0.02836]
[1766253463841,0.0113399,88224.0,88208.0,0.02836]
[1766253473760,0.01964,88230.0,88208.0,0.02836]
[1766253475156,0.0113397,88225.0,88208.0,0.02836]
[1766253514200,0.0113397,88225.0,88210.0,0.22866278]
[1766253515402,0.0113392,88229.0,88210.0,0.22866278]
[1766253517101,0.0113392,88229.0,88210.0,0.22864415]
[1766253522303,0.0113396,88227.0,88210.0,0.22864415]
[1766253534713,0.25700415,88230.0,88210.0,0.22864415]
[1766253534914,0.02706362,88229.0,88210.0,0.22864415]
[1766253535115,0.25700415,88230.0,88210.0,0.22864415]
[1766253535315,0.02706361,88229.0,88210.0,0.22864415]
[1766253535519,0.25700415,88230.0,88210.0,0.22864415]
[1766253535719,0.02706361,88229.0,88210.0,0.22864415]
[1766253536018,0.25700415,88230.0,88210.0,0.22864415]
[1766253536217,0.02706361,88229.0,88210.0,0.22864415]
[1766253536413,0.25700415,88230.0,88210.0,0.22864415]
[1766253536615,0.02706361,88229.0,88210.0,0.22864415]
[1766253536815,0.25700415,88230.0,88210.0,0.22864415]
[1766253537019,0.02706361,88229.0,88210.0,0.22864415]
[1766253537218,0.25700415,88230.0,88210.0,0.22864415]
[1766253537422,0.02706344,88229.0,88210.0,0.22864415]
[1766253537617,0.0113392,88229.0,88210.0,0.22864415]
[1766253541835,0.0113392,88229.0,88208.0,0.02836]
[1766253542137,0.0113392,88229.0,88210.0,0.22864415]
[1766253542329,0.0113396,88226.0,88210.0,0.22864415]
[1766253545234,0.25700415,88230.0,88210.0,0.22864415]
[1766253545235,0.0113395,88227.0,88210.0,0.22864415]
[1766253549432,0.0113395,88227.0,88211.0,0.02836]
[1766253549633,0.0113395,88227.0,88212.0,0.02836]
[1766253552039,0.0113395,88227.0,88213.0,0.02836]
[1766253562950,0.0396991,88230.0,88213.0,0.02836]
[1766253563249,0.02707271,88229.0,88213.0,0.02836]
[1766253563434,0.0396991,88230.0,88213.0,0.02836]
[1766253563639,0.02707275,88229.0,88213.0,0.02836]
[1766253563838,0.0396991,88230.0,88213.0,0.02836]
[1766253564039,0.02707275,88229.0,88213.0,0.02836]
[1766253564242,0.0396991,88230.0,88213.0,0.02836]
[1766253564444,0.02706833,88229.0,88213.0,0.02836]
[1766253564636,0.0396991,88230.0,88213.0,0.02836]
[1766253564841,0.02706833,88229.0,88213.0,0.02836]
[1766253565040,0.0396991,88230.0,88213.0,0.02836]
[1766253565251,0.02706833,88229.0,88213.0,0.02836]
[1766253565450,0.0396991,88230.0,88213.0,0.02836]
[1766253565640,0.02706838,88229.0,88213.0,0.02836]
[1766253565841,0.0396991,88230.0,88213.0,0.02836]
[1766253566040,0.02706838,88229.0,88213.0,0.02836]
[1766253566241,0.0396991,88230.0,88213.0,0.02836]
[1766253566441,0.02706843,88229.0,88213.0,0.02836]
[1766253566643,0.0396991,88230.0,88213.0,0.02836]
[1766253566946,0.02706843,88229.0,88213.0,0.02836]
[1766253567146,0.0396991,88230.0,88213.0,0.02836]
[1766253567348,0.02706847,88229.0,88213.0,0.02836]
[1766253567547,0.0396991,88230.0,88213.0,0.02836]
[1766253567848,0.02706849,88229.0,88213.0,0.02836]
[1766253568147,0.0396991,88230.0,88213.0,0.02836]
[1766253568336,0.02706854,88229.0,88213.0,0.02836]
[1766253568538,0.0396991,88230.0,88213.0,0.02836]
[1766253568751,0.02706855,88229.0,88213.0,0.02836]
[1766253569052,0.0396991,88230.0,88213.0,0.02836]
[1766253569242,0.02706855,88229.0,88213.0,0.02836]
[1766253569442,0.0396991,88230.0,88213.0,0.02836]
[1766253569643,0.02706862,88229.0,88213.0,0.02836]
[1766253569842,0.0396991,88230.0,88213.0,0.02836]
[1766253570049,0.00013006,88234.0,88220.0,0.22864975]
[1766253570255,0.00013006,88234.0,88213.0,0.02836]
[1766253570256,0.00013006,88234.0,88216.0,0.0113408]
[1766253576756,0.00013006,88234.0,88213.0,0.02836]
[1766253577560,0.00013006,88234.0,88214.0,0.0113411]
[1766253582066,0.02622433,88233.0,88214.0,0.0113411]
[1766253582268,0.00013006,88234.0,88214.0,0.0113411]
[1766253582466,0.0262242,88233.0,88214.0,0.0113411]
[1766253582768,0.00013006,88234.0,88214.0,0.0113411]
[1766253582954,0.0262242,88233.0,88214.0,0.0113411]
[1766253583154,0.00013006,88234.0,88214.0,0.0113411]
[1766253583351,0.0262242,88233.0,88214.0,0.0113411]
[1766253583550,0.00013006,88234.0,88214.0,0.0113411]
[1766253583751,0.02622413,88233.0,88214.0,0.0113411]
[1766253583965,0.00013006,88234.0,88214.0,0.0113411]
[1766253584165,0.02622413,88233.0,88214.0,0.0113411]
[1766253584365,0.00013006,88234.0,88214.0,0.0113411]
[1766253594077,0.00013006,88234.0,88218.0,0.0113405]
[1766253594280,0.00013006,88234.0,88219.0,0.02836]
[1766253600170,0.00013006,88234.0,88220.0,0.0113403]
[1766253600375,0.02836,88235.0,88219.0,0.02836]
[1766253600376,0.01552,88240.0,88219.0,0.02836]
[1766253600578,0.0257397,88239.0,88219.0,0.02836]
[1766253600773,0.01552,88240.0,88219.0,0.02836]
[1766253601077,0.22861026,88230.0,88207.0,4.036e-05]
[1766253601275,0.00017006,88227.0,88207.0,4.036e-05]
[1766253601475,0.00017006,88227.0,88208.0,0.0148619]
[1766253602077,0.22861026,88240.0,88214.0,0.0113411]
[1766253602078,0.0113378,88240.0,88214.0,0.0113411]
[1766253602287,0.011338,88238.0,88215.0,0.02836]
[1766253603080,0.00017006,88235.0,88215.0,0.02836]
[1766253606382,0.01150856,88235.0,88215.0,0.02836]
[1766253606783,0.22861026,88230.0,88216.0,0.02836]
[1766253607081,0.011339,88231.0,88217.0,0.02836]
[1766253607286,0.0113394,88228.0,88217.0,0.02836]
[1766253609083,0.00017006,88235.0,88217.0,0.02836]
[1766253609084,0.0113388,88233.0,88217.0,0.02836]
[1766253609990,0.00017006,88235.0,88217.0,0.02836]
[1766253610388,0.0113385,88234.0,88217.0,0.02836]
[1766253610893,0.00017006,88235.0,88217.0,0.02836]
[1766253612390,0.02836,88238.0,88220.0,0.22861026]
[1766253612592,0.02836,88238.0,88221.0,0.0113401]
[1766253613386,0.02853006,88238.0,88221.0,0.0113401]
[1766253614084,0.0113369,88247.0,88228.0,0.22861026]
[1766253614284,0.02590047,88246.0,88227.0,0.00916]
[1766253614583,0.02590047,88245.0,88227.0,0.00916]
[1766253614784,0.02590047,88244.0,88227.0,0.00916]
[1766253614980,0.22861026,88260.0,88227.0,0.00916]
[1766253615185,0.02836,88265.0,88250.0,0.22861026]
[1766253615490,0.0113348,88264.0,88245.0,0.00284]
[1766253615684,0.0113351,88261.0,88245.0,0.00284]
[1766253616091,0.0113355,88258.0,88245.0,0.00284]
[1766253622789,0.0113355,88258.0,88244.0,0.00016996]
[1766253629402,0.0113359,88255.0,88244.0,0.00016996]
[1766253632298,0.0113354,88259.0,88244.0,0.00016996]
[1766253637507,0.0396954,88259.0,88244.0,0.00016996]
[1766253641808,0.0396954,88259.0,88243.0,0.00572]
[1766253642196,0.0113357,88256.0,88243.0,0.00572]
[1766253642407,0.02836,88259.0,88238.0,0.00424]
[1766253642408,0.0113362,88252.0,88238.0,0.00424]
[1766253642710,0.0113362,88252.0,88231.0,0.0113388]
[1766253642711,0.228506,88250.0,88237.0,0.00352]
[1766253645306,0.0113366,88249.0,88236.0,0.02852996]
[1766253645499,0.228506,88250.0,88236.0,0.00852996]
[1766253646309,0.2398425,88250.0,88236.0,0.00852996]
[1766253647203,0.2682025,88250.0,88235.0,0.02836]
[1766253660027,0.2682025,88250.0,88234.0,0.00016996]
[1766253660324,0.2682025,88250.0,88235.0,0.0258]
[1766253660820,0.0396965,88250.0,88235.0,0.0258]
[1766253662223,0.256866,88250.0,88235.0,0.0258]
[1766253662826,0.0113366,88249.0,88235.0,0.0258]
[1766253663024,0.256866,88250.0,88234.0,0.02452]
[1766253663224,0.256866,88250.0,88234.0,0.01452]
[1766253663414,0.256866,88250.0,88234.0,0.00452]
[1766253664223,0.2682025,88250.0,88234.0,0.00452]
[1766253665428,0.2682025,88250.0,88231.0,0.0252989]
[1766253665723,0.26827224,88250.0,88231.0,0.0252989]
[1766253666709,0.26827224,88250.0,88232.0,0.00016996]
[1766253668227,0.26827224,88250.0,88230.0,0.01348]
[1766253669227,0.26827224,88250.0,88230.0,0.024819]
[1766253669640,0.0396965,88250.0,88230.0,0.024819]
[1766253669831,0.26827224,88250.0,88230.0,0.024819]
[1766253672334,0.26827224,88250.0,88230.0,0.24205574]
[1766253672530,0.26827224,88250.0,88231.0,0.0113389]
[1766253674142,0.26827224,88250.0,88230.0,0.24205574]
[1766253675149,0.0396965,88250.0,88230.0,0.24205574]
[1766253675347,0.26827224,88250.0,88230.0,0.24205574]
[1766253679748,0.26827224,88250.0,88230.0,0.01348]
[1766253680049,0.0396965,88250.0,88230.0,0.01348]
[1766253680248,0.26827224,88250.0,88230.0,0.01348]
[1766253681149,0.0113369,88247.0,88230.0,0.01348]
[1766253681551,0.25693574,88250.0,88230.0,0.01348]
[1766253683252,0.0113366,88249.0,88230.0,0.01348]
[1766253685148,0.02836,88250.0,88230.0,0.024819]
[1766253687853,0.0396965,88250.0,88230.0,0.024819]
[1766253690555,0.0396966,88250.0,88230.0,0.01348]
[1766253691557,0.26826683,88250.0,88230.0,0.01348]
[1766253693348,0.0396966,88250.0,88230.0,0.01348]
[1766253694150,0.0113369,88247.0,88230.0,0.01348]
[1766253705864,0.02836,88250.0,88230.0,0.0248191]
[1766253712272,0.02836,88250.0,88233.0,0.0113387]
[1766253714872,0.02836,88250.0,88230.0,0.01348]
[1766253715071,0.02836,88250.0,88231.0,0.0113389]
[1766253720368,0.0113366,88249.0,88230.0,0.01348]
[1766253721575,0.0113366,88249.0,88230.0,0.024819]
[1766253722776,0.02836,88250.0,88230.0,0.024819]
[1766253726178,0.0396965,88250.0,88230.0,0.024819]
[1766253731085,0.0396965,88250.0,88230.0,0.01348]
[1766253733588,0.0396965,88250.0,88230.0,0.024819]
[1766253734287,0.0113365,88250.0,88230.0,0.024819]
[1766253742190,0.0113361,88254.0,88230.0,0.024819]
[1766253742392,0.02713388,88253.0,88230.0,0.024819]
[1766253742686,0.0113361,88254.0,88230.0,0.024819]
[1766253742887,0.02713378,88253.0,88230.0,0.024819]
[1766253743084,0.0113361,88254.0,88230.0,0.024819]
[1766253743279,0.0271338,88253.0,88230.0,0.024819]
[1766253743484,0.0113361,88254.0,88230.0,0.024819]
[1766253743684,0.02713383,88253.0,88230.0,0.024819]
[1766253743879,0.0113361,88254.0,88230.0,0.024819]
[1766253744088,0.02713381,88253.0,88233.0,0.0113387]
[1766253744288,0.0113361,88254.0,88233.0,0.0113387]
[1766253744491,0.02722428,88253.0,88233.0,0.0113387]
[1766253744691,0.0113361,88254.0,88233.0,0.0113387]
[1766253744877,0.02722427,88253.0,88233.0,0.0113387]
[1766253745083,0.0113363,88252.0,88230.0,0.01348]
[1766253745587,0.22855393,88250.0,88230.0,0.24203393]
[1766253746391,0.22855393,88250.0,88232.0,0.0113388]
[1766253749598,0.02836,88251.0,88232.0,0.0113388]
[1766253749787,0.22855393,88250.0,88232.0,0.0113388]
[1766253758305,0.23989043,88250.0,88230.0,0.24203393]
[1766253760705,0.23989043,88250.0,88231.0,0.0113388]
[1766253763216,0.22855393,88250.0,88231.0,0.0113388]
[1766253763615,0.22855393,88250.0,88230.0,0.24203393]
[1766253763815,0.22855393,88250.0,88230.0,0.25337283]
[1766253765317,0.22855393,88250.0,88232.0,0.0113388]
[1766253765721,0.0396964,88251.0,88232.0,0.0113388]
[1766253765919,0.22855393,88250.0,88230.0,0.24203393]
[1766253766105,0.0113367,88249.0,88230.0,0.01348]
[1766253767222,0.22855393,88250.0,88231.0,0.0113388]
[1766253771123,0.22855393,88250.0,88230.0,0.24203393]
[1766253771421,0.22855393,88250.0,88230.0,0.25337293]
[1766253773523,0.22855393,88250.0,88230.0,0.024819]
[1766253773725,0.22855393,88250.0,88230.0,0.25337293]
[1766253774628,0.22855871,88250.0,88230.0,0.25337771]
[1766253780534,0.22855871,88250.0,88230.0,0.024819]
[1766253780732,0.22855871,88250.0,88230.0,0.25337771]
[1766253782631,0.23989521,88250.0,88230.0,0.01348]
[1766253782834,0.45711742,88240.0,88225.0,0.02836]
[1766253783032,0.02836,88239.0,88225.0,0.02836]
[1766253829071,0.02836,88239.0,88210.0,0.22860091]
[1766253829072,0.22860091,88235.0,88212.0,0.0267813]
[1766253829267,0.02801783,88238.0,88212.0,0.0267813]
[1766253829268,0.22860091,88230.0,88212.0,0.0267813]
[1766253829468,0.02836,88239.0,88212.0,0.0267813]
[1766253829667,0.0113388,88232.0,88212.0,0.01544]
[1766253831471,0.02836,88239.0,88212.0,0.01544]
[1766253831669,0.02799815,88238.0,88212.0,0.01544]
[1766253831871,0.02799815,88237.0,88212.0,0.01544]
[1766253832070,0.0113393,88228.0,88212.0,0.01544]
[1766253832469,0.22860091,88230.0,88205.0,0.00333582]
[1766253832870,0.02799075,88229.0,88205.0,0.00333582]
[1766253833172,0.22860091,88230.0,88205.0,0.00333582]
[1766253833368,0.02798138,88229.0,88205.0,0.00333582]
[1766253833569,0.22860091,88230.0,88205.0,0.00333582]
[1766253833764,0.02798136,88229.0,88205.0,0.00333582]
[1766253833970,0.22860091,88230.0,88205.0,0.00333582]
[1766253834171,0.0113398,88225.0,88205.0,0.00333582]
[1766253835278,0.0113396,88226.0,88205.0,0.00333582]
[1766253836778,0.01134,88223.0,88205.0,0.00333582]
[1766253836976,0.01150996,88223.0,88205.0,0.00333582]
[1766253840673,0.00016996,88223.0,88205.0,0.00333582]
[1766253841677,0.00016996,88223.0,88206.0,0.0113421]
[1766253841881,0.00016996,88223.0,88205.0,0.00333582]
[1766253842771,0.22860091,88220.0,88204.0,0.00948]
[1766253842976,0.0113409,88216.0,88198.0,0.00468]
[1766253845079,0.22860091,88210.0,88187.0,0.0113445]
[1766253845274,0.22860091,88220.0,88181.0,0.00356]
[1766253845275,0.22860091,88200.0,88181.0,0.00356]
[1766253845473,0.00017006,88201.0,88181.0,0.00356]
[1766253846081,0.23994381,88200.0,88181.0,0.00356]
[1766253846984,0.0113429,88200.0,88181.0,0.00356]
[1766253847173,0.00017006,88201.0,88181.0,0.00356]
[1766253855290,0.0113429,88200.0,88181.0,0.00356]
[1766253858787,0.00017006,88201.0,88181.0,0.00356]
[1766253861188,0.00017006,88201.0,88181.0,0.0149053]
[1766253861793,0.00017006,88201.0,88184.0,0.0113449]
[1766253867503,0.00017006,88201.0,88190.0,0.22877111]
[1766253867894,0.00017006,88201.0,88184.0,0.0113449]
[1766253868096,0.22877111,88220.0,88190.0,0.22877111]
[1766253868393,0.0113416,88211.0,88191.0,0.01752]
[1766253868594,0.22877111,88210.0,88191.0,0.01752]
[1766253868896,0.0113416,88211.0,88191.0,0.01752]
[1766253869098,0.00017006,88210.0,88191.0,0.01752]
[1766253869707,0.22894117,88210.0,88191.0,0.01752]
[1766253870701,0.00017006,88210.0,88191.0,0.01752]
[1766253870897,0.22894117,88210.0,88191.0,0.01752]
[1766253874602,0.0113418,88209.0,88191.0,0.01752]
[1766253875304,0.0113418,88209.0,88191.0,0.0284]
[1766253877003,0.0113422,88206.0,88191.0,0.0284]
[1766253877607,0.22894117,88210.0,88191.0,0.0284]
[1766253878002,0.02829969,88209.0,88191.0,0.0284]
[1766253878207,0.02829969,88208.0,88191.0,0.0284]
[1766253878399,0.22894117,88210.0,88191.0,0.0284]
[1766253878707,0.0282994,88209.0,88191.0,0.0284]
[1766253878901,0.0282994,88208.0,88191.0,0.0284]
[1766253879102,0.22894117,88210.0,88191.0,0.0284]
[1766253879303,0.02829908,88209.0,88191.0,0.0284]
[1766253879506,0.22894117,88210.0,88191.0,0.0284]
[1766253879507,0.02829908,88208.0,88191.0,0.0284]
[1766253879708,0.0113419,88209.0,88191.0,0.0284]
[1766253879903,0.02829905,88208.0,88191.0,0.0284]
[1766253880209,0.0113419,88209.0,88191.0,0.0284]
[1766253880406,0.011342,88207.0,88191.0,0.0284]
[1766253885014,0.0113425,88204.0,88191.0,0.0284]
[1766253885409,0.2289256,88210.0,88191.0,0.0284]
[1766253885410,0.0113428,88201.0,88191.0,0.0284]
[1766253887025,0.24009834,88201.0,88191.0,0.0084]
[1766253887225,0.0113428,88201.0,88187.0,0.02836]
[1766253887427,0.0113423,88205.0,88187.0,0.02836]
[1766253887621,0.0113426,88203.0,88187.0,0.02836]
[1766253891620,0.22875554,88200.0,88187.0,0.02836]
[1766253891825,0.24009854,88200.0,88187.0,0.02836]
[1766253893331,0.22875554,88200.0,88187.0,0.02836]
[1766253894733,0.0113427,88202.0,88187.0,0.02836]
[1766253894935,0.22875554,88200.0,88187.0,0.02836]
[1766253900738,0.22875554,88200.0,88187.0,0.02832]
[1766253905438,0.02836,88201.0,88187.0,0.02832]
[1766253905639,0.22875554,88200.0,88187.0,0.02832]
[1766253906038,0.02836,88201.0,88187.0,0.02832]
[1766253906241,0.22875554,88200.0,88187.0,0.02832]
[1766253906433,0.02836,88201.0,88190.0,0.22875554]
[1766253908338,0.02836,88201.0,88188.0,0.0113444]
[1766253908540,0.02836,88201.0,88190.0,0.22875554]
[1766253913845,0.02836,88201.0,88187.0,0.02832]
[1766253979012,0.02836,88201.0,88187.0,0.0396645]
[1766253981012,0.02836,88201.0,88187.0,0.02832]
[1766253981206,0.02836,88201.0,88190.0,0.0113442]
[1766253982912,0.00017006,88210.0,88190.0,0.0113442]
[1766253983113,0.04261092,88209.0,88187.0,0.02832]
[1766253983312,0.0149018,88209.0,88187.0,0.02832]
[1766253985718,0.0113422,88206.0,88187.0,0.02832]
[1766253987820,0.00356,88209.0,88188.0,0.0113444]
[1766253988321,0.011342,88208.0,88188.0,0.0113444]
[1766253989427,0.011342,88208.0,88190.0,0.22876592]
[1766253995031,0.02744109,88207.0,88190.0,0.22876592]
[1766253995221,0.02744109,88206.0,88190.0,0.22876592]
[1766253995519,0.02744109,88205.0,88190.0,0.22876592]
[1766253995821,0.011342,88208.0,88190.0,0.22876673]
[1766253996021,0.02744111,88207.0,88190.0,0.22876673]
[1766253996221,0.02744111,88206.0,88190.0,0.22876673]
[1766253996425,0.02744111,88205.0,88190.0,0.22876673]
[1766253996620,0.011342,88208.0,88190.0,0.22876673]
[1766253996820,0.02744107,88207.0,88190.0,0.22876673]
[1766253997017,0.02744107,88206.0,88190.0,0.22876673]
[1766253997221,0.02744107,88205.0,88190.0,0.22876673]
[1766253997419,0.011342,88208.0,88190.0,0.22876673]
[1766253997633,0.02744112,88207.0,88190.0,0.22876673]
[1766253997830,0.011342,88208.0,88190.0,0.22876673]
[1766253997831,0.02744112,88206.0,88190.0,0.22876673]
[1766253998029,0.02744112,88205.0,88190.0,0.22876673]
[1766253998232,0.011342,88208.0,88190.0,0.22876673]
[1766253998434,0.02744114,88207.0,88190.0,0.22876673]
[1766253998634,0.02744114,88206.0,88190.0,0.22876673]
[1766253998834,0.02744114,88205.0,88190.0,0.22876673]
[1766253999020,0.011342,88208.0,88190.0,0.22876673]
[1766253999227,0.02744118,88207.0,88190.0,0.22876673]
[1766253999438,0.02744118,88206.0,88191.0,0.011344]
[1766253999633,0.02744118,88205.0,88191.0,0.011344]
[1766253999838,0.00356,88209.0,88190.0,0.22876673]
[1766254000136,0.03878361,88208.0,88190.0,0.22876673]
[1766254000434,0.02744171,88207.0,88190.0,0.22876673]
[1766254001938,0.02744171,88207.0,88191.0,0.02836]
[1766254002439,0.02744189,88206.0,88191.0,0.02836]
[1766254002639,0.02744189,88205.0,88191.0,0.02836]
[1766254002839,0.0113419,88208.0,88191.0,0.02836]
[1766254003042,0.0274419,88207.0,88191.0,0.02836]
[1766254003338,0.0274419,88206.0,88191.0,0.02836]
[1766254003539,0.0274419,88205.0,88191.0,0.02836]
[1766254003741,0.02744216,88204.0,88191.0,0.02836]
[1766254003937,0.0113419,88208.0,88191.0,0.02836]
[1766254004240,0.02744229,88207.0,88191.0,0.02836]
[1766254004439,0.02744229,88206.0,88191.0,0.02836]
[1766254004637,0.02744229,88205.0,88191.0,0.02836]
[1766254004826,0.02744229,88204.0,88191.0,0.02836]
[1766254005032,0.0113419,88208.0,88191.0,0.02836]
[1766254005338,0.02744206,88207.0,88191.0,0.02836]
[1766254005534,0.0113419,88208.0,88191.0,0.02836]
[1766254005535,0.02744206,88206.0,88191.0,0.02836]
[1766254005734,0.02744206,88205.0,88191.0,0.02836]
[1766254005937,0.0113419,88208.0,88191.0,0.02836]
[1766254006135,0.02744172,88207.0,88191.0,0.02836]
[1766254006433,0.0113419,88208.0,88191.0,0.02836]
[1766254006434,0.02744172,88206.0,88191.0,0.02836]
[1766254006635,0.02744172,88205.0,88191.0,0.02836]
[1766254006836,0.00356,88209.0,88191.0,0.0397039]
[1766254007035,0.02744173,88208.0,88191.0,0.0397039]
[1766254007237,0.02744173,88207.0,88191.0,0.0397039]
[1766254007444,0.02744173,88206.0,88191.0,0.0397039]
[1766254007645,0.02744173,88205.0,88191.0,0.0397039]
[1766254007849,0.00356,88209.0,88191.0,0.0397039]
[1766254008035,0.02744172,88208.0,88191.0,0.02836]
[1766254008334,0.02744172,88207.0,88191.0,0.02836]
[1766254008531,0.02744172,88206.0,88191.0,0.02836]
[1766254008846,0.02744172,88205.0,88191.0,0.02836]
[1766254009038,0.02744181,88204.0,88191.0,0.02836]
[1766254009336,0.00356,88209.0,88191.0,0.02836]
[1766254009537,0.02744312,88208.0,88191.0,0.02836]
[1766254009745,0.02744312,88207.0,88191.0,0.02836]
[1766254009945,0.02744312,88206.0,88191.0,0.02836]
[1766254010147,0.02744312,88205.0,88191.0,0.02836]
[1766254010345,0.00356,88209.0,88191.0,0.02836]
[1766254010544,0.02744396,88208.0,88191.0,0.02836]
[1766254010740,0.02744396,88207.0,88191.0,0.02836]
[1766254010949,0.02744396,88206.0,88191.0,0.02836]
[1766254011245,0.02744396,88205.0,88191.0,0.02836]
[1766254011444,0.00356,88209.0,88191.0,0.02836]
[1766254011643,0.027444,88208.0,88191.0,0.02836]
[1766254011843,0.00356,88209.0,88191.0,0.02836]
[1766254011844,0.027444,88207.0,88191.0,0.02836]
[1766254012044,0.027444,88206.0,88191.0,0.02836]
[1766254012244,0.027444,88205.0,88191.0,0.02836]
[1766254012445,0.00356,88209.0,88191.0,0.02836]
[1766254012645,0.027444,88208.0,88191.0,0.02836]
[1766254012842,0.027444,88207.0,88191.0,0.02836]
[1766254013046,0.027444,88206.0,88191.0,0.02836]
[1766254013246,0.027444,88205.0,88191.0,0.02836]
[1766254013447,0.00356,88209.0,88191.0,0.02836]
[1766254013649,0.02744395,88208.0,88191.0,0.02836]
[1766254013849,0.02744395,88207.0,88191.0,0.02836]
[1766254014050,0.02744395,88206.0,88191.0,0.02836]
[1766254014250,0.02744395,88205.0,88191.0,0.02836]
[1766254014552,0.00356,88209.0,88191.0,0.02836]
[1766254014753,0.02723998,88208.0,88191.0,0.02836]
[1766254014951,0.02723998,88207.0,88191.0,0.02836]
[1766254015153,0.02723998,88206.0,88191.0,0.02836]
[1766254015356,0.02723998,88205.0,88191.0,0.02836]
[1766254015654,0.00356,88209.0,88191.0,0.02836]
[1766254015856,0.02723998,88208.0,88191.0,0.02836]
[1766254016055,0.02723998,88207.0,88191.0,0.02836]
[1766254016252,0.02723998,88206.0,88191.0,0.02836]
[1766254016553,0.02723998,88205.0,88191.0,0.02836]
[1766254016853,0.00356,88209.0,88191.0,0.02836]
[1766254017052,0.02724,88208.0,88191.0,0.02836]
[1766254017253,0.02724,88207.0,88191.0,0.02836]
[1766254017453,0.02724,88206.0,88191.0,0.02836]
[1766254017656,0.02724,88205.0,88191.0,0.02836]
[1766254017855,0.00356,88209.0,88191.0,0.02836]
[1766254018056,0.02723998,88208.0,88191.0,0.02836]
[1766254018249,0.02723998,88207.0,88191.0,0.02836]
[1766254018550,0.02723998,88206.0,88191.0,0.02836]
[1766254018749,0.02723998,88205.0,88191.0,0.02836]
[1766254018950,0.00356,88209.0,88191.0,0.02836]
[1766254019150,0.02723999,88208.0,88191.0,0.02836]
[1766254019353,0.02723999,88207.0,88191.0,0.02836]
[1766254019557,0.02723999,88206.0,88191.0,0.02836]
[1766254019750,0.02723999,88205.0,88191.0,0.02836]
[1766254019952,0.00356,88209.0,88191.0,0.02836]
[1766254020261,0.0272395,88208.0,88191.0,0.02836]
[1766254020453,0.0272395,88207.0,88191.0,0.02836]
[1766254020653,0.0272395,88206.0,88191.0,0.02836]
[1766254020852,0.0272395,88205.0,88191.0,0.02836]
[1766254021152,0.00356,88209.0,88191.0,0.02836]
[1766254021351,0.02723936,88208.0,88191.0,0.02836]
[1766254021558,0.02723936,88207.0,88191.0,0.02836]
[1766254021758,0.02723936,88206.0,88191.0,0.02836]
[1766254022059,0.02723936,88205.0,88191.0,0.02836]
[1766254022259,0.00356,88209.0,88191.0,0.02836]
[1766254022461,0.02723391,88208.0,88191.0,0.02836]
[1766254022758,0.02723391,88207.0,88191.0,0.02836]